Cogmind - Beta 16 @@@ ROGUE MODE // 2025.11.01 @ 19:34:29 Player: jumpy Result: Destroyed by D-53 Grenadier with Mini Grenade Launcher Performance ------------- Evolutions (0) 0 Regions Visited (2) 400 Robots Destroyed (11) 55 Value Destroyed (217) 217 Prototype IDs (2) 40 Alien Tech Used (0) 0 Bonus (0) 0 TOTAL SCORE: 712 Bonus ------- None Cogmind --------- Core Integrity 0/250 Matter 300/300 Energy 98/100 System Corruption 0% Temperature Cool (0) Movement Core (50) Location -10/Mines Parts ------- > --- POWER (1) -------- (None) > --- PROPULSION (2) --- (None) > --- UTILITY (2) ------ Targeting Computer > --- WEAPON (2) ------- (None) > --- INVENTORY (5) ---- Armored Wheel Improved Terrain Scanner Grenade Launcher Mining Laser Heavy Hammer Peak State ------------ > --- POWER ------------ Light Ion Engine > --- PROPULSION ------- Aluminum Leg Aluminum Leg > --- UTILITY ---------- Medium Storage Unit Seismic Detector > --- WEAPON ----------- Medium Laser Medium Laser > --- INVENTORY -------- Light Ion Engine Compact Wheel Compact Wheel Improved Terrain Scanner Seismic Detector Mining Laser Heavy Hammer [Rating: 8] Favorites ----------- Power Light Ion Engine Engine Light Ion Engine Propulsion Aluminum Leg Leg Aluminum Leg Utility Seismic Detector Device Seismic Detector Storage Medium Storage Unit Processor Targeting Computer Weapon Medium Laser Energy Gun Medium Laser Build | -11 -10 -10 ------- Run | Yrd Mat Min Slots Evolved . | . . . Power . | . . . Propulsion . | . . . Utility . | . . . Weapon . | . . . Parts Attached 11 | 7 3 1 Power 2 | 1 1 . Engine 2 | 1 1 . Core . | . . . Reactor . | . . . Propulsion 2 | 2 . . Treads . | . . . Leg 2 | 2 . . Wheel . | . . . Hover . | . . . Flight . | . . . Utility 4 | 2 1 1 Device 1 | 1 . . Storage 2 | 1 1 . Processor 1 | . . 1 Hackware . | . . . Protection . | . . . Artifact . | . . . Weapon 3 | 2 1 . Energy Gun 3 | 2 1 . Energy Cannon . | . . . Ballistic Gun . | . . . Ballistic Cannon . | . . . Launcher . | . . . Special Weapon . | . . . Impact Weapon . | . . . Slashing Weapon . | . . . Piercing Weapon . | . . . Special Melee Weapon . | . . . Unidentified Prototypes . | . . . Parts Lost 3 | . 1 2 Power 1 | . 1 . Propulsion 1 | . . 1 Utility . | . . . Weapon 1 | . . 1 Highest Loss Streak 2 | . 1 2 To Critical Strikes . | . . . Average Backups 6 | 3 7 6 Power . | . . . Propulsion 1 | 1 2 1 Utility 2 | . 2 2 Weapon 1 | . 1 2 Tool/Special . | . . . Unused Backups 8 | . 2 6 Power . | . . . Propulsion 4 | . 2 2 Utility 2 | . . 2 Weapon 2 | . . 2 Tool/Special . | . . . Average Slot Usage (%) 93 | . 99 81 Engine 12 | . 13 11 Leg 26 | . 28 23 Device 13 | . 14 11 Storage 13 | . 14 11 Energy Gun 26 | . 28 22 Peak Build Rating 8 | 7 8 8 Average Rating 6 | 5 7 6 On Entrance 5 | . 7 8 Avg Prop Armor Cover (%) . | . . . Naked Turns 24 | . . 24 Heaviest Build 18 | 12 18 18 Greatest Support 20 | 20 20 20 Greatest Overweight (x) . | . . . Average Overweight (x) . | . . . Largest Inventory Capacity 10 | 8 10 10 Average Capacity 8 | 7 9 9 Most Carried 9 | 6 9 7 Average Carried 6 | 3 7 6 Final Capacity 10 | 8 10 5 Final Carried 7 | 6 7 5 Class Distribution -------------------- 100% | Mutant Dominant Class ---------------- Mutant | -10/Materials Mutant | -10/Mines Resources | -11 -10 -10 ----------- Run | Yrd Mat Min Matter Collected 347 | 270 20 57 Remotely . | . . . Salvage Created 368 | 147 191 30 Parts 21 | 11 7 3 Haulers Intercepted . | . . . Recyclers Shooed . | . . . Parts Field Recycled . | . . . Retrieved Matter . | . . . Parts Self-Destructed . | . . . Prevented . | . . . Parts Restored . | . . . Kills | -11 -10 -10 ------- Run | Yrd Mat Min Combat Hostiles Destroyed 7 | . 5 2 Guns 7 | . 5 2 Classes Destroyed 4 | 2 1 1 Tunneler 3 | 3 . . Recycler 1 | 1 . . Swarmer 2 | . . 2 Grunt 5 | . 5 . Best Kill Streak 3 | 3 2 2 Combat Bots Only 2 | . 2 2 Max Kills in Single Turn 1 | 1 1 1 Gunslinging . | . . . Exploded . | . . . Melee . | . . . Uniques/NPCs Destroyed . | . . . Combat | -11 -10 -10 -------- Run | Yrd Mat Min Hostile Shots Fired 56 | . 31 25 Missed 18 | . 9 9 Hits 38 | . 22 16 Projectile 38 | . 22 16 AOE 3 | . . 3 Damage Taken 501 | . 250 251 Core 252 | . 68 184 Absorbed by Shields . | . . . Core Remaining (%) 100 | 100 . . Volleys Fired 34 | 9 20 5 Largest 2 | 2 2 2 Hottest 100 | 90 100 100 Shots Fired 65 | 18 38 9 Gun 65 | 18 38 9 Cannon . | . . . Launcher . | . . . Special . | . . . Kinetic . | . . . Thermal 65 | 18 38 9 Explosive . | . . . Electromagnetic . | . . . Robot Hit Streak 7 | 4 6 7 Robot Miss Streak 5 | 2 4 5 Penetration Max . | . . . Secondary Targets 1 | . 1 . Max Gunslinging Chain 1 | . 1 . Shots Hit Robots 40 | 12 24 4 Core Hits 18 | 5 10 3 Critical Kills . | . . . Critical Parts Destroyed . | . . . Critical Strikes 7 | 2 2 3 Burn 7 | 2 2 3 Melee Attacks . | . . . Impact . | . . . Slashing . | . . . Piercing . | . . . Sneak Attacks . | . . . Combat Hostiles . | . . . Follow-up Attacks . | . . . Damage Inflicted 532 | 141 310 81 Guns 526 | 141 310 75 Cannons . | . . . Explosions . | . . . Melee . | . . . Ramming 6 | . . 6 Kinetic . | . . . Thermal 526 | 141 310 75 Explosive . | . . . Electromagnetic . | . . . Impact . | . . . Slashing . | . . . Piercing . | . . . Highest Corruption . | . . . Average Corruption . | . . . Corruption Purged . | . . . Corruption Blocked . | . . . Overload Shots . | . . . Overflow Damage . | . . . Projectiles . | . . . Explosions . | . . . Melee . | . . . Knockbacks . | . . . Impact . | . . . Kinetic . | . . . Secondary . | . . . Self-Inflicted Damage 3 | . . 3 Shots . | . . . Rammed 1 | . . 1 Targets Rammed 1 | . . 1 Kicked . | . . . Crushed . | . . . Highest Temperature 479 | 90 479 156 Average Temperature 154 | 34 223 73 Received Heat Transfer 152 | . 132 20 Effects 7 | . 7 . Shutdowns 2 | . 2 . Interference 1 | . 1 . Matter Decay 1 | . 1 . Damage (minor) 3 | . 3 . Siege Activations . | . . . Martial Activations . | . . . Shielding Activations . | . . . Robots Disrupted . | . . . Combat Hostiles . | . . . Robots Corrupted . | . . . Combat Hostiles . | . . . Parts Fried . | . . . Impact Corruptions . | . . . Robots Melted . | . . . Combat Hostiles . | . . . Parts Melted 5 | . 4 1 Heat Transferred 2025 | 508 1073 444 Parts Sabotaged . | . . . Parts Stolen . | . . . Parts Stripped . | . . . Power Chain Reactions . | . . . Alert | -11 -10 -10 ------- Run | Yrd Mat Min Maximum Alert Level . | . . . Low Security (%) 100 | 100 100 100 Level 1 . | . . . Level 2 . | . . . Level 3 . | . . . Level 4 . | . . . Level 5 . | . . . High Security . | . . . Max Security . | . . . Peak Influence 90 | 5 90 41 Initial 31 | . . 31 Average 14 | . 19 17 Influence Increases 230 | 20 160 50 Destroy 0b10 Robot/C 140 | . 100 40 Destroy 0b10 Robot/NC 20 | 20 . . Destroy Leader 20 | . 10 10 Successful Hack 5 | . 5 . Lose Combat Pursuer 45 | . 45 . Influence Decreases 230 | 20 80 130 Entered New Map 49 | . . 49 Time Decay 151 | 20 70 61 Lost Part 30 | . 10 20 Squads Dispatched 3 | . 3 . Investigation 1 | . 1 . Extermination . | . . . Reinforcement 2 | . 2 . Assault . | . . . Garrison . | . . . Intercept . | . . . Searches Triggered . | . . . Construction Impeded . | . . . Haulers Reinforced . | . . . Active Scanning Responses . | . . . Cargo Convoy Interrupts . | . . . Stealth | -11 -10 -10 --------- Run | Yrd Mat Min Distress Signals 1 | . 1 . Communications Jammed . | . . . Distress Signals . | . . . Times Spotted 29 | . 13 16 Peak Tracking Total 18 | . 5 18 Tactical Retreats 4 | . 2 2 Traps | -11 -10 -10 ------- Run | Yrd Mat Min Traps Triggered 1 | . 1 . Indirectly . | . . . Trap Hack Attempts . | . . . Triggered . | . . . Disarmed . | . . . Reprogrammed . | . . . Reused . | . . . Traps Extracted . | . . . Installed . | . . . Triggered . | . . . Machines | -11 -10 -10 ---------- Run | Yrd Mat Min Machines Disabled . | . . . Max in Single Turn . | . . . Machines Repaired . | . . . Machines Dismantled . | . . . Machines Sabotaged . | . . . Overloaded Fab Kills . | . . . Hacking | -11 -10 -10 --------- Run | Yrd Mat Min Machines Accessed 1 | . 1 . Terminals 1 | . 1 . Fabricators . | . . . Repair Stations . | . . . Recycling Units . | . . . Scanalyzers . | . . . Garrison Access . | . . . Total Hacks 3 | . 3 . Successful 1 | . 1 . Failed 2 | . 2 . Catastrophic . | . . . Database Lockouts . | . . . Manual 1 | . 1 . Terminals 3 | . 3 . Fabricators . | . . . Repair Stations . | . . . Recycling Units . | . . . Scanalyzers . | . . . Garrison Access . | . . . Terminal Hacks 1 | . 1 . Prototype ID Bank 1 | . 1 . Fabricator Hacks . | . . . Repair Station Hacks . | . . . Recycling Unit Hacks . | . . . Scanalyzer . | . . . Garrison Access Hacks . | . . . Unauthorized Hacks . | . . . Terminals . | . . . Fabricators . | . . . Repair Stations . | . . . Recycling Units . | . . . Scanalyzers . | . . . Garrison Access . | . . . Data Cores Recovered . | . . . Used . | . . . Hacking Detections 1 | . 1 . Full Trace Events . | . . . Feedback Events . | . . . Feedback Blocked . | . . . Robot Schematics Acquired . | . . . Robots Built . | . . . Authchips . | . . . Time . | . . . Total Robot Build Rating . | . . . Part Schematics Acquired . | . . . Parts Built . | . . . Authchips . | . . . Time . | . . . Total Part Build Rating . | . . . Part Studies Acquired . | . . . Parts Repaired . | . . . Time . | . . . Parts Recycled . | . . . Recycled Matter . | . . . Retrieved Matter . | . . . Retrieved Components . | . . . Parts Scanalyzed . | . . . Part Schematics Acquired . | . . . Parts Damaged . | . . . Bothacking | -11 -10 -10 ------------ Run | Yrd Mat Min Used RIF Installer . | . . . Robots Hacked . | . . . Non-combat . | . . . Combat . | . . . Robot Hacks Applied . | . . . Relay Couplers Released . | . . . Fabnet Peak Effective % . | . . . Robots Rewired . | . . . Allies Hacked . | . . . Hacks Repelled . | . . . Allies | -11 -10 -10 -------- Run | Yrd Mat Min Total Allies . | . . . Largest Group . | . . . Highest-Rated Group . | . . . Highest-Rated Ally . | . . . Total Orders . | . . . Ally Attacks . | . . . Total Damage . | . . . Kills . | . . . Allies Corrupted . | . . . Allies Melted . | . . . Intel | -11 -10 -10 ------- Run | Yrd Mat Min Active Infowar (turns) 541 | 84 324 133 Seismic 541 | 84 324 133 Robot Analysis Total . | . . . Derelict Logs Recovered . | . . . Drone Launches . | . . . Drone Recoveries . | . . . Exploration | -11 -10 -10 ------------- Run | Yrd Mat Min Turns Passed 666 | 179 324 163 Spaces Moved 480 | 118 209 153 Core 63 | 7 . 56 Treads . | . . . Legs 417 | 111 209 97 Wheels . | . . . Hover . | . . . Flight . | . . . Fastest Speed 50 | 50 120 50 Average Speed 110 | 115 120 94 Slowest Speed 120 | 120 120 120 Overloaded Moves . | . . . Propulsion Burnouts . | . . . Robots Hopped . | . . . Potential Cave-ins . | . . . Cave-ins Triggered . | . . . Exploration Rate (%) 24 | 7 35 31 Regions Visited 2 Branch Regions 1 Pre-discovered Areas . | . . . Known Exits Taken . | . . . Unknown Exits Taken 2 | 1 1 . Scrap Searched 1 | . . 1 Spaces Dug . | . . . Terrain Destroyed . | . . . Melee . | . . . Projectile . | . . . AOE . | . . . Terrain Rammed . | . . . Walls Destroyed . | . . . Machines Disabled . | . . . Actions | -11 -10 -10 --------- Run | Yrd Mat Min Total 546 | 139 244 163 Wait 8 | . 6 2 Move 478 | 117 208 153 Hop . | . . . Pick Up 11 | 6 4 1 Fast Attach 7 | 7 . . Attach 2 | . 1 1 Detach . | . . . Swap 2 | . 2 . Drop 3 | . 3 . Fire 34 | 9 20 5 Melee . | . . . Ram 1 | . . 1 Kick . | . . . Crush . | . . . Escape Stasis . | . . . Rewire . | . . . Trap . | . . . Miscellaneous . | . . . Route ------- -11/Scrapyard -10/Materials -10/Mines History --------- Turn | Location | Event 42 | -11/Scrapyard | Discovered new exit (range 14) 180 | -11/Scrapyard | Entered Materials 301 | -10/Materials | Build established: Mutant 472 | -10/Materials | Discovered new exit (range 6) 504 | -10/Materials | Entered Mines 600 | -10/Mines | Assembled infested the area 637 | -10/Mines | Released all parts (5) 661 | -10/Mines | Core integrity fell below 50% 667 | -10/Mines | Core integrity fell below 20% 667 | -10/Mines | Destroyed by D-53 Grenadier with Mini Grenade Launcher Last Messages --------------- 00627_ Med. Laser destroyed. 00637_ Aluminum Leg destroyed. 00637_ Released Lgt. Ion Engine. 00637_ Released Aluminum Leg. 00637_ Released Seismic Detector. 00637_ Released Med. Laser. 00637_ Released Med. Storage Unit. 00643_ as-10325 sneak attacks. 00643_ R-06 Scavenger destroyed. 00658_ Searching scrap... 00658_ Found Med. Laser. 00658_ Found Grenade Launcher. 00658_ Found 48 Matter. 00659_ Acquired 1 matter. 00662_ Acquired Grenade Launcher. 00665_ Slammed into C-45 Heavy ARC. 00666_ C-45 Heavy ARC bursts open, deploying its payload. 00666_ D-53 Grenadier unfolds itself. 00666_ Acquired 8 matter. 00667_ The unstable cave ceiling collapses. Map ----- +----------------------------------------------------+ | ## ###???????????????????????????????? | | # # #?????????????????????????????????? | | # ## #?????????????????????????????????? | | ## ## #?????????????????????????????????? | | ?### ## #?????????????????????????????????? | | ???##### ### #??####???????????????????????????? | | ???????####?# #?# ##??????????????????????????? | | ???????????## ## ######?????????????????????? | | ??????????## #??????????????????? | | ?????????## ### #???????????????????????? | | ########## #?# #???????????????????????? | | !!!= ## """ ##?# #???????????????????????? | | [*= =%[ """ ##??# #???????????????????????? | | #### [ """ ##???# #???????????????????????? | | ?## ##???# #???????????????????????? | | ?# ##### #???????????????????????? | | ?# ####### #???????????????????????? | | ?# ##?????## #### ####????????????????????? | | ?## #???????## ##??# #????????????????????? | | ??# #????????#####???#### #????????????????????? | | ??## ##???????????????????# #????????????????????? | | ???###????????????????????# #????????????????????? | | ??????????????????????????# #????????????????????? | | ??????????????????????##### #????????????????????? | | ???????????????????#### #????????????????????? | | ??????????????????## # @# #????????????????????? | | ??????????????????# d # ???????????????????? | | ??????????????????# # % #####??????????????????? | | ??????????????????## d #??????????????????????? | | ??????????????????# #??????????????????????? | | ??????????????????# #??????????????????????? | | ???*[%== ####### # ##??????????????????????? | | ????????""" [% ####???????????????????????? | | ????????""" ##########??????????????????????????? | | ?????????????????????????????????????????????????? | | ?????????????????????????????????????????????????? | | ?????????????????????????????????????????????????? | | ?????????????????????????????????????????????????? | | ?????????????????????????????????????????????????? | | | | | | | | | | | | | | | | | | | | | | | +----------------------------------------------------+ Best States ------------- Heat Dissipation 25 Energy Generation 10 Energy Capacity 125 Matter Stores 300 Matter Capacity 300 Sight Range 16 Terrain Scan Density 10 Evasion (%) 55 Item Schematics ----------------- None Robot Schematics ------------------ None Fabricated ------------ Nothing Repaired ---------- Nothing Studied --------- None Alien Tech Used ----------------- None Achievements -------------- None Challenges ------------ None Game ------ Seed IonicAmuletMinigun Manual? 0 Play Time 00:05:01 Cumulative 258.0 hours Start 2025.11.01 @ 19:29:44 End 2025.11.01 @ 19:34:29 Sessions 1 Manual Loads 0 Difficulty Rogue Special Mode None Game No. 577 Rogue 577 Adventurer 0 Explorer 0 Win Type - Total 18 Types 13/0/3/1/1/0/0/0/0/0 Lore% 80 Gallery% 70 Achievement% 47 Wizard Run 0 Options --------- Layout 0 ASCII 0 Keyboard 0 Movement Numpad Keybinds 0 Fullscreen 2 Font 18/Terminus Map View 76x50 Zoom Use 0% Tactical HUD 1 Map Filters NONE Filters SATURATION(100) Steam 1 RUN: e55a0476-da06-4f10-aaf6-b02dfea40c31